[Event "ECo-C Extraliga 2023-24"]
[Site "Slovakia"]
[Date "2024.02.24"]
[Round "7.8"]
[White "Hudoba, Ondrej"]
[Black "Smetana, Peter"]
[Result "0-1"]
[ECO "B52"]
[WhiteElo "2033"]
[BlackElo "1900"]
[Annotator "NA RC"]
[PlyCount "64"]
[EventDate "2023.10.06"]
[EventType "team-tourn"]
[EventCountry "SVK"]
[SourceTitle "playchess.com"]
[Source "ChessBase"]
[SourceQuality "1"]
[TimeControl "40/5400+30:1800+30"]

1. e4 {[%emt 0:00:04]} c5 {[%emt 0:00:21]} 2. Nf3 {[%emt 0:00:11]} d6 {[%emt 0:01:11]} 3. Bb5+ {[%emt 0:00:39]} Bd7 {[%emt 0:00:12]} 4. Bxd7+ {[%emt 0:00:13]} Qxd7 {[%emt 0:00:11]} 5. O-O {[%emt 0:00:20]} Nc6 {[%emt 0:00:59]} 6. d4 {[%emt 0:00:17]} cxd4 {[%emt 0:01:25]} 7. Nxd4 {[%emt 0:00:08]} Nf6 {[%emt 0:01:45]} 8. Re1 {[%emt 0:00:11]} e6 {[%emt 0:07:47]} 9. c4 {[%emt 0:01:26]} Be7 {[%emt 0:01:38]} 10. Nc3 {[%emt 0:00:18]} O-O {[%emt 0:02:58]} 11. b3 {[%emt 0:01:07]} a6 {[%emt 0:04:47]} 12. Bg5 {[%emt 0:12:18]} Rac8 {[%emt 0:13:17]} 13. Rc1 {[%emt 0:02:55]} Rfd8 {[%emt 0:20:15]} 14. Be3 {[%emt 0:05:30]} Nxd4 {[%emt 0:08:42]} 15. Bxd4 {[%emt 0:00:54]} Qc6 {[%emt 0:00:44]} 16. a4 {[%emt 0:01:49]} Rd7 {[%emt 0:08:37]} 17. h3 {[%emt 0:01:56]} e5 {[%emt 0:07:30]} 18. Be3 {[%emt 0:03:01]} Nxe4 {[%emt 0:00:19]} 19. Nd5 {[%emt 0:00:09]} Bd8 {[%emt 0:01:22]} 20. b4 {[%emt 0:00:17]} Ra8 {[%emt 0:01:59]} 21. g4 {[%emt 0:18:53]} Nf6 {[%emt 0:13:49]} 22. g5 {[%emt 0:00:38]} Ne8 {[%emt 0:00:07]} 23. a5 {[%emt 0:01:08]} f6 {[%emt 0:00:49]} 24. h4 {[%emt 0:05:56]} Rf7 {[%emt 0:00:46]} 25. f4 {[%emt 0:12:31]} fxg5 {[%emt 0:00:55]} 26. fxg5 {[%emt 0:08:13]} g6 {[%emt 0:00:27]} 27. Qg4 {[%emt 0:01:01]} Qc8 {[%emt 0:00:29]} 28. Qg2 {[%emt 0:01:20]} Ng7 {[%emt 0:00:47]} 29. c5 {[%emt 0:03:10]} dxc5 {[%emt 0:00:19]} 30. Bxc5 {[%emt 0:00:46]} Qe6 {[%emt 0:00:12]} 31. Bd4 {[%emt 0:01:59]} Rf5 {[%emt 0:00:16]} 32. Qe4 {[%emt 0:04:02]} exd4 {[%emt 0:00:32]} 0-1

[Event "ECo-C Extraliga 2023-24"]
[Site "Slovakia"]
[Date "2024.02.25"]
[Round "8"]
[White "Aczel, Gergely"]
[Black "Pechac, Jergus"]
[Result "1/2-1/2"]
[ECO "E42"]
[WhiteElo "2481"]
[BlackElo "2575"]
[Annotator "TA"]
[PlyCount "56"]
[EventDate "2023.10.06"]
[EventType "team-tourn"]
[EventCountry "SVK"]
[SourceTitle "playchess.com"]
[Source "ChessBase"]
[SourceQuality "1"]
[TimeControl "40/5400+30:1800+30"]

{[%evp 11,56,8,21,-1,5,0,25,19,19,21,29,21,23,1,17,-43,0,0,7,-14,-26,-43,-49,-36,-2,-29,-12,-75,-87,-79,-19,-10,18,0,-6,-10,-6,-13,0,0,19,-18,0,-7,7,-2,53]} 1. d4 {[%emt 0:00:02]} Nf6 {[%emt 0:00:07]} 2. c4 {[%emt 0:00:04]} e6 {[%emt 0:00:05]} 3. Nc3 {[%emt 0:00:04]} Bb4 {[%emt 0:00:22]} 4. e3 {[%emt 0:00:05]} c5 {[%emt 0:01:05]} 5. Nge2 {[%emt 0:00:08]} d6 {[%emt 0:02:19]} 6. a3 {[%emt 0:04:25]} Ba5 {[%emt 0:00:14]} 7. dxc5 {[%emt 0:00:06]} dxc5 {[%emt 0:00:06]} 8. Qxd8+ {[%emt 0:00:04]} Kxd8 {[%emt 0:00:51]} 9. b3 {[%emt 0:00:44] White has an edge.} Ke7 {[%emt 0:00:24]} 10. Bb2 {[%emt 0:00:21]} Bd7 {[%emt 0:00:06]} 11. f3 {[%emt 0:10:43]} Bc6 {[%emt 0:00:10]} 12. O-O-O {[%emt 0:34:51]} a6 {[%emt 0:00:15]} 13. h4 {[%emt 0:07:07]} (13. a4 $11) 13... Nbd7 {[%emt 0:01:02]} (13... b5 $15) 14. Nf4 $11 {[%emt 0:01:03]} Bc7 {[%emt 0:01:04]} 15. h5 {[%emt 0:01:48]} g5 {[%emt 0:00:58]} 16. Nd3 {[%emt 0:05:36][%cal Bf4d3,Bd3e1,Be1c2,Bc2a3][%mdl 32]} b5 {[%emt 0:13:28]} 17. e4 {[%emt 0:01:05]} Rhb8 {[%emt 0:01:22]} 18. cxb5 {[%emt 0:13:49]} axb5 {[%emt 0:00:06]} 19. b4 {[%emt 0:00:06]} (19. Kb1 $11) 19... c4 $17 {[%emt 0:04:58]} 20. Ne1 {[%emt 0:00:03]} Bb6 {[%emt 0:15:13]} (20... Nb6 $17) 21. Nc2 $11 {[%emt 0:00:11] The position is equal.} Rd8 {[%emt 0:00:05] [#]} 22. a4 $1 {[%emt 0:10:11]} bxa4 {[%emt 0:00:53]} 23. Bxc4 {[%emt 0:00:12]} Rdc8 {[%emt 0:02:12][%cal Oc6e4] Hoping for ...Bxe4!} 24. Be2 {[%emt 0:03:13]} Ne5 {[%emt 0:09:49]} 25. Kb1 {[%emt 0:01:04]} Nfd7 {[%emt 0:00:57]} 26. Na3 {[%emt 0:01:33]} Be3 {[%emt 0:02:06]} 27. Ncb5 {[%emt 0:01:29]} Rab8 {[%emt 0:01:14][%cal Og5g4]} 28. Ka2 {[%emt 0:01:32]} Rb6 {[%emt 0:05:58] Weighted Error Value: White=0.15 (very precise) /Black=0.16 (very precise) .  Mistake:       	White=2     	Black=3      Inaccurate:     	White=2     	Black=2      OK:         	White=9     	Black=7      Best:        	---       	Black=1} (28... Bxb5 $11 29. Bxb5 Bf4) 1/2-1/2

[Event "ECo-C Extraliga 2023-24"]
[Site "Slovakia"]
[Date "2024.02.25"]
[Round "8"]
[White "Stalmach, Richard"]
[Black "Horvath, Csaba"]
[Result "0-1"]
[ECO "D41"]
[WhiteElo "2433"]
[BlackElo "2493"]
[Annotator "ChessBase"]
[PlyCount "100"]
[EventDate "2023.10.06"]
[EventType "team-tourn"]
[EventCountry "SVK"]
[SourceTitle "playchess.com"]
[Source "ChessBase"]
[SourceQuality "1"]
[TimeControl "40/5400+30:1800+30"]

1. d4 {[%emt 0:00:04]} Nf6 {[%emt 0:00:07]} 2. c4 {[%emt 0:00:05]} e6 {[%emt 0:00:06]} 3. Nf3 {[%emt 0:00:04]} d5 {[%emt 0:00:19]} 4. Nc3 {[%emt 0:00:07]} c5 {[%emt 0:00:38]} 5. cxd5 {[%emt 0:01:52]} Nxd5 {[%emt 0:00:10]} 6. e3 {[%emt 0:01:15]} cxd4 {[%emt 0:02:46]} 7. exd4 {[%emt 0:00:23]} Nxc3 {[%emt 0:00:22]} 8. bxc3 {[%emt 0:00:06]} Qc7 {[%emt 0:00:05]} 9. a4 {[%emt 0:00:25]} Be7 {[%emt 0:02:42]} 10. Bd2 {[%emt 0:00:50]} O-O {[%emt 0:09:14]} 11. Bd3 {[%emt 0:00:23]} b6 {[%emt 0:00:52]} 12. O-O {[%emt 0:01:41]} Nd7 {[%emt 0:12:46]} 13. Re1 {[%emt 0:07:53]} Bb7 {[%emt 0:00:31]} 14. a5 {[%emt 0:05:28]} Bd6 {[%emt 0:11:11]} 15. a6 {[%emt 0:21:41]} Bd5 {[%emt 0:00:44]} 16. Qe2 {[%emt 0:14:42]} Bf4 {[%emt 0:03:26]} 17. Bxf4 {[%emt 0:03:27]} Qxf4 {[%emt 0:00:03]} 18. Nd2 {[%emt 0:00:16]} Rac8 {[%emt 0:02:32]} 19. c4 {[%emt 0:02:21]} Ba8 {[%emt 0:01:44]} 20. Ne4 {[%emt 0:01:09]} Rfd8 {[%emt 0:10:32]} 21. Rad1 {[%emt 0:09:48]} Nf6 {[%emt 0:11:26]} 22. Qe3 {[%emt 0:10:27]} Qxe3 {[%emt 0:04:53]} 23. Nxf6+ {[%emt 0:00:04]} gxf6 {[%emt 0:00:06]} 24. fxe3 {[%emt 0:00:09]} f5 {[%emt 0:00:34]} 25. Kf2 {[%emt 0:00:40]} Be4 {[%emt 0:02:33]} 26. Be2 {[%emt 0:05:07]} Kf8 {[%emt 0:02:39]} 27. Rg1 {[%emt 0:01:14]} Ke7 {[%emt 0:00:53]} 28. g4 {[%emt 0:00:07]} Rg8 {[%emt 0:03:51]} 29. gxf5 {[%emt 0:00:30]} Bxf5 {[%emt 0:00:22]} 30. Rxg8 {[%emt 0:01:32]} Rxg8 {[%emt 0:00:02]} 31. Bf3 {[%emt 0:01:07]} Rc8 {[%emt 0:03:04]} 32. e4 {[%emt 0:06:25]} Bg6 {[%emt 0:00:03]} 33. h4 {[%emt 0:02:25]} f6 {[%emt 0:06:28]} 34. Rc1 {[%emt 0:00:03]} e5 {[%emt 0:02:02]} 35. d5 {[%emt 0:00:37]} Kd6 {[%emt 0:00:49]} 36. Ke3 {[%emt 0:00:44]} b5 {[%emt 0:04:05]} 37. h5 {[%emt 0:00:41]} Be8 {[%emt 0:00:15]} 38. Kd2 {[%emt 0:02:59]} bxc4 {[%emt 0:01:51]} 39. Kc3 {[%emt 0:00:20]} Rb8 {[%emt 0:02:15]} 40. Be2 {[%emt 0:00:43]} Rb3+ {[%emt 0:00:04]} 41. Kd2 {[%emt 0:03:08]} c3+ {[%emt 0:03:41]} 42. Rxc3 {[%emt 0:00:41]} Rxc3 {[%emt 0:00:05]} 43. Kxc3 {[%emt 0:00:03]} h6 {[%emt 0:00:08]} 44. Kc4 {[%emt 0:09:35]} Bd7 {[%emt 0:00:26]} 45. Bd1 {[%emt 0:02:45]} Bc8 {[%emt 0:01:29]} 46. Kb5 {[%emt 0:05:10]} Bh3 {[%emt 0:00:35]} 47. Bf3 {[%emt 0:01:47]} f5 {[%emt 0:06:21]} 48. exf5 {[%emt 0:00:11]} Bxf5 {[%emt 0:00:02]} 49. Kc4 {[%emt 0:00:04]} Bc8 {[%emt 0:04:41]} 50. Kb5 {[%emt 0:08:44]} Bh3 {[%emt 0:00:19]} 0-1

[Event "ECo-C Extraliga 2023-24"]
[Site "Slovakia"]
[Date "2024.02.25"]
[Round "8"]
[White "Zylka, Stanislaw"]
[Black "Horvath, Jozsef"]
[Result "1/2-1/2"]
[ECO "E10"]
[WhiteElo "2411"]
[BlackElo "2411"]
[Annotator "ChessBase"]
[PlyCount "27"]
[EventDate "2023.10.06"]
[EventType "team-tourn"]
[EventCountry "SVK"]
[SourceTitle "playchess.com"]
[Source "ChessBase"]
[SourceQuality "1"]
[TimeControl "40/5400+30:1800+30"]

1. d4 {[%emt 0:00:07]} Nf6 {[%emt 0:00:24]} 2. c4 {[%emt 0:01:39]} e6 {[%emt 0:01:32]} 3. Nf3 {[%emt 0:00:18]} d5 {[%emt 0:00:35]} 4. g3 {[%emt 0:02:55]} Bb4+ {[%emt 0:01:48]} 5. Bd2 {[%emt 0:02:56]} Be7 {[%emt 0:00:27]} 6. Bg2 {[%emt 0:00:52]} O-O {[%emt 0:00:57]} 7. O-O {[%emt 0:00:13]} c6 {[%emt 0:00:37]} 8. Qc2 {[%emt 0:00:38]} b6 {[%emt 0:05:23]} 9. Rd1 {[%emt 0:01:30]} Bb7 {[%emt 0:01:06]} 10. Bg5 {[%emt 0:09:39]} Nbd7 {[%emt 0:03:23]} 11. Nbd2 {[%emt 0:01:17]} c5 {[%emt 0:21:06]} 12. Rac1 {[%emt 0:18:29]} Rc8 {[%emt 0:08:36]} 13. Qb1 {[%emt 0:06:44]} h6 {[%emt 0:18:56]} 14. cxd5 {[%emt 0:10:44]} 1/2-1/2

[Event "ECo-C Extraliga 2023-24"]
[Site "Slovakia"]
[Date "2024.02.25"]
[Round "8"]
[White "Jurcik, Martin"]
[Black "Szucs, Vladimir"]
[Result "1/2-1/2"]
[ECO "D36"]
[WhiteElo "2359"]
[BlackElo "2067"]
[Annotator "TA"]
[PlyCount "72"]
[EventDate "2023.10.06"]
[EventType "team-tourn"]
[EventCountry "SVK"]
[SourceTitle "playchess.com"]
[Source "ChessBase"]
[SourceQuality "1"]
[TimeControl "40/5400+30:1800+30"]

{[%evp 18,72,29,0,0,0,25,29,39,31,53,27,34,25,24,28,25,32,38,32,67,25,33,-2,12,18,38,0,0,0,20,27,34,27,37,30,34,23,23,23,23,23,35,18,50,23,449,6,6,6,8,0,8,0,8,0,36]} 1. c4 {[%emt 0:00:07]} e6 {[%emt 0:00:36]} 2. Nc3 {[%emt 0:00:39]} d5 {[%emt 0:00:04]} 3. d4 {[%emt 0:00:11]} Nf6 {[%emt 0:00:44][%cal Bg8f6,Bf6h5,Bh5f4][%mdl 32]} 4. cxd5 {[%emt 0:00:38]} exd5 {[%emt 0:00:08]} 5. Bg5 {[%emt 0:00:31]} c6 {[%emt 0:00:40]} 6. Qc2 {[%emt 0:01:05]} Be7 {[%emt 0:00:20]} 7. e3 {[%emt 0:00:48]} Nbd7 {[%emt 0:07:07]} 8. Nf3 {[%emt 0:02:22]} Nh5 {[%emt 0:02:43]} 9. Bxe7 {[%emt 0:03:23]} Qxe7 {[%emt 0:00:05]} 10. Bd3 {[%emt 0:02:03][%cal Oe1g1]} Nf4 {[%emt 0:01:26]} 11. Bf1 {[%emt 0:00:29]} Nf6 {[%emt 0:05:50]} 12. O-O-O {[%emt 0:01:55]} Ne6 {[%emt 0:03:08] White has an edge.} 13. Kb1 {[%emt 0:11:41]} g6 {[%emt 0:00:29]} 14. Bd3 {[%emt 0:07:00]} O-O {[%emt 0:05:08]} 15. h3 {[%emt 0:02:59]} c5 {[%emt 0:05:02]} 16. dxc5 {[%emt 0:01:40]} Nxc5 {[%emt 0:00:15]} 17. Nd4 {[%emt 0:00:34]} Nxd3 {[%emt 0:05:04]} 18. Qxd3 {[%emt 0:00:45]} Be6 {[%emt 0:04:32][%cal Of6e4]} 19. g4 {[%emt 0:06:26] White is more active.} Ne4 $1 {[%emt 0:05:12]} 20. Rdf1 {[%emt 0:26:15]} Nxc3+ {[%emt 0:11:31]} 21. Qxc3 {[%emt 0:00:03]} Rac8 {[%emt 0:03:26]} 22. Qb3 {[%emt 0:04:30]} Rc4 {[%emt 0:04:43]} 23. f3 {[%emt 0:01:59]} Rfc8 {[%emt 0:02:50]} 24. h4 {[%emt 0:00:36][%cal Bh3h4,Bh4h5][%mdl 32]} b6 {[%emt 0:03:52]} 25. Qd3 {[%emt 0:02:37]} Bd7 {[%emt 0:04:18]} 26. h5 {[%emt 0:04:14]} g5 {[%emt 0:03:12]} 27. Rc1 {[%emt 0:13:00]} Rxc1+ {[%emt 0:04:45]} 28. Rxc1 {[%emt 0:00:00]} Rxc1+ {[%emt 0:00:52]} 29. Kxc1 $11 {[%emt 0:00:01][%mdl 4096] Endgame. KQB-KQN} Qb4 {[%emt 0:01:19]} 30. b3 {[%emt 0:01:45]} a5 {[%emt 0:01:52]} 31. Kb2 {[%emt 0:02:20]} Qe1 $2 {[%emt 0:03:50][%mdl 8192]} (31... Kg7 $11 {and Black has nothing to worry.}) 32. Qc3 $2 {[%emt 0:00:35]} ({Only move:} 32. Nc2 $18 Qg3 33. Qxd5) 32... Qf2+ {[%emt 0:01:39] The position is equal.} 33. Kb1 {[%emt 0:01:49]} Qf1+ {[%emt 0:00:11]} 34. Kb2 {[%emt 0:01:55] [#] And now Qc7 would win.} Qf2+ {[%emt 0:00:09]} 35. Kb1 {[%emt 0:00:21]} Qf1+ {[%emt 0:00:05]} 36. Kb2 {[%emt 0:00:35] Threatens to win with Qc7.} Qf2+ {[%emt 0:00:05] Weighted Error Value: White=0.32/Black=0.30.  Loses game:     	---       	Black=1      Missed win:     	White=1     	---        Inaccurate:     	White=5     	Black=2      OK:         	White=5     	Black=12     Strong:       	---       	Black=1} 1/2-1/2

[Event "ECo-C Extraliga 2023-24"]
[Site "Slovakia"]
[Date "2024.02.25"]
[Round "8"]
[White "Chovan, Milan"]
[Black "Piesik, Piotr"]
[Result "1/2-1/2"]
[ECO "E36"]
[WhiteElo "2349"]
[BlackElo "2421"]
[Annotator "RC"]
[PlyCount "35"]
[EventDate "2023.10.06"]
[EventType "team-tourn"]
[EventCountry "SVK"]
[SourceTitle "playchess.com"]
[Source "ChessBase"]
[SourceQuality "1"]
[TimeControl "40/5400+30:1800+30"]

1. d4 {[%emt 0:00:02]} Nf6 {[%emt 0:00:17]} 2. c4 {[%emt 0:00:05]} e6 {[%emt 0:00:15]} 3. Nc3 {[%emt 0:00:08]} Bb4 {[%emt 0:00:31]} 4. Qc2 {[%emt 0:00:17]} d5 {[%emt 0:00:19]} 5. a3 {[%emt 0:00:09]} Bxc3+ {[%emt 0:00:19]} 6. Qxc3 {[%emt 0:00:09]} O-O {[%emt 0:00:07]} 7. Bg5 {[%emt 0:00:09]} c5 {[%emt 0:00:55]} 8. dxc5 {[%emt 0:16:48]} d4 {[%emt 0:00:45]} 9. Qc2 {[%emt 0:01:43]} e5 {[%emt 0:02:53]} 10. Rd1 {[%emt 0:05:19]} Re8 {[%emt 0:13:17]} 11. Nf3 {[%emt 0:02:59]} Qa5+ {[%emt 0:14:23]} 12. Nd2 {[%emt 0:10:13]} Nbd7 {[%emt 0:09:28]} 13. g3 {[%emt 0:03:26]} e4 {[%emt 0:06:53]} 14. b4 {[%emt 0:02:32]} Qxa3 {[%emt 0:00:58]} 15. Qb3 {[%emt 0:00:52]} Qa6 {[%emt 0:01:52]} 16. e3 {[%emt 0:03:55]} d3 {[%emt 0:07:07]} 17. Bg2 {[%emt 0:02:31]} Qe6 {[%emt 0:00:21]} 18. O-O {[%emt 0:02:37]} 1/2-1/2

[Event "ECo-C Extraliga 2023-24"]
[Site "Slovakia"]
[Date "2024.02.25"]
[Round "8"]
[White "Beres, Tomas"]
[Black "Straka, Jozef"]
[Result "0-1"]
[ECO "C47"]
[WhiteElo "2128"]
[BlackElo "2272"]
[Annotator "TA"]
[PlyCount "60"]
[EventDate "2023.10.06"]
[EventType "team-tourn"]
[EventCountry "SVK"]
[SourceTitle "playchess.com"]
[Source "ChessBase"]
[SourceQuality "1"]
[TimeControl "40/5400+30:1800+30"]

{[%evp 15,60,-4,3,-2,8,3,0,-12,0,0,0,-6,-2,-24,-17,-30,-16,-20,-8,-29,0,-32,0,-1,0,-41,-19,-31,-35,-93,-87,-202,-203,-360,-353,-380,-373,-455,-442,-506,-485,-992,-967,-29987,-1306,-5589,-4890]} 1. e4 {[%emt 0:00:06]} e5 {[%emt 0:00:10]} 2. Nf3 {[%emt 0:00:22]} Nc6 {[%emt 0:00:02]} 3. Nc3 {[%emt 0:00:30]} Nf6 {[%emt 0:12:09]} 4. d4 {[%emt 0:00:35]} exd4 {[%emt 0:00:04]} 5. Nxd4 {[%emt 0:00:05]} Bb4 {[%emt 0:00:13]} 6. Nxc6 {[%emt 0:00:26]} bxc6 {[%emt 0:00:06]} 7. Bd3 {[%emt 0:00:45]} O-O {[%emt 0:01:25]} 8. O-O {[%emt 0:00:17]} d5 {[%emt 0:00:25]} 9. exd5 {[%emt 0:00:18]} Bg4 {[%emt 0:01:35]} 10. Ne2 {[%emt 0:09:38]} cxd5 {[%emt 0:01:58]} 11. f3 {[%emt 0:08:53] Die Stellung ist ausgeglichen.} Bh5 {[%emt 0:02:49]} 12. Nf4 {[%emt 0:00:45]} c6 {[%emt 0:08:39]} 13. Nxh5 {[%emt 0:26:44]} Nxh5 {[%emt 0:00:10]} 14. g4 {[%emt 0:02:28]} Nf6 {[%emt 0:03:04]} 15. c3 {[%emt 0:05:26]} Bc5+ {[%emt 0:09:56]} 16. Kh1 {[%emt 0:00:56]} Qd6 {[%emt 0:03:59]} 17. Bg5 {[%emt 0:08:55]} Rae8 {[%emt 0:12:09]} 18. Qc2 {[%emt 0:01:22]} h6 {[%emt 0:00:51]} 19. Bh4 {[%emt 0:01:32]} Be3 {[%emt 0:02:02]} 20. Qg2 {[%emt 0:05:12]} Nd7 {[%emt 0:05:41][%cal Bf6d7,Bd7e5,Be5c4][%mdl 32]} 21. Rad1 {[%emt 0:04:35]} Bf4 {[%emt 0:03:12]} 22. g5 {[%emt 0:04:04]} (22. Bg3 $15) 22... Ne5 {[%emt 0:01:45]} 23. Bb1 {[%emt 0:05:21]} (23. Rg1 $17 {ist wohl besser.}) 23... Nc4 $19 {[%emt 0:03:15] [#] Und jetzt ...Ne3 wäre schön.} 24. Qc2 $2 {[%emt 0:11:23]} (24. Bf2) 24... g6 {[%emt 0:00:39] Zielt auf ...Ne3 ab. Aktives Gegenspiel!} (24... Bxg5 25. Qh7#) 25. Bf2 {[%emt 0:00:16]} hxg5 {[%emt 0:02:43]} ({Keinesfalls} 25... Bxg5 26. f4 Bxf4 (26... Qxf4 $2 27. Bc5 $19) 27. a4 $19) 26. Rfe1 {[%emt 0:01:25]} Bxh2 {[%emt 0:05:10]} 27. b4 {[%emt 0:00:25]} Bg3 {[%emt 0:02:57]} 28. Bc5 {[%emt 0:00:45]} (28. Kg2 $142 Bxf2 29. Qxf2) 28... Qf4 {[%emt 0:01:19]} 29. Bxf8 {[%emt 0:00:55]} Bxe1 {[%emt 0:01:27]} (29... Rxe1+ $142 30. Rxe1 Nd2 31. Kg1 Nxf3+ (31... Bxe1 $2 32. Qxd2 Bxd2 33. Bc5 $19) 32. Kf1 Nd4+ (32... Nxe1+ {ist ein Selbstmatt.} 33. Ke2 Qg4+ 34. Kd2 Bf4+ 35. Kxe1 Qg1+ 36. Ke2 Qg2+ 37. Ke1 Bg3+ 38. Qf2 Qxf2+ 39. Kd1 Bf4 40. Bh6 Qd2#) 33. Kg2 Nxc2 34. Re2 Ne1+ (34... Kxf8 $2 35. Bxc2 Qg4 36. Rf2 $19) 35. Kg1 Nf3+ (35... Kxf8 36. Rb2 g4 37. b5 Nf3+ 38. Kf1 Qc1+ 39. Ke2 Qe1+ 40. Kd3 Qe4#) 36. Kh1 Qh4+ (36... Kxf8 {wird mattgesetzt.} 37. Bd3 Be1 38. Bc2 Qh4+ 39. Kg2 Qh2+ 40. Kxf3 Qh3#) 37. Kg2 g4 38. Kf1 Qh1#) 30. Bc5 {[%emt 0:00:30]} Qxf3+ {[%emt 0:00:03] Gewichteter Fehlerwert: Weiß=0.99/Schwarz=0.22 (präzise) .  Fehler:       	Weiß=4     	---        Ungenau:       	Weiß=3     	Schwarz=2     OK:         	Weiß=4     	Schwarz=8     Bester:       	---       	Schwarz=2} 0-1

[Event "ECo-C Extraliga 2023-24"]
[Site "Slovakia"]
[Date "2024.02.25"]
[Round "8"]
[White "Krupa, Miroslav"]
[Black "Jurcik, Marian"]
[Result "0-1"]
[ECO "B44"]
[WhiteElo "2119"]
[BlackElo "2404"]
[Annotator "RC"]
[PlyCount "158"]
[EventDate "2023.10.06"]
[EventType "team-tourn"]
[EventCountry "SVK"]
[SourceTitle "playchess.com"]
[Source "ChessBase"]
[SourceQuality "1"]
[TimeControl "40/5400+30:1800+30"]

1. e4 {[%emt 0:00:05]} c5 {[%emt 0:02:06]} 2. Nf3 {[%emt 0:00:15]} e6 {[%emt 0:01:51]} 3. d4 {[%emt 0:00:18]} cxd4 {[%emt 0:00:14]} 4. Nxd4 {[%emt 0:00:07]} Nc6 {[%emt 0:00:10]} 5. Nb5 {[%emt 0:00:20]} d6 {[%emt 0:00:08]} 6. c4 {[%emt 0:00:10]} Nf6 {[%emt 0:00:21]} 7. N1c3 {[%emt 0:00:13]} a6 {[%emt 0:00:11]} 8. Na3 {[%emt 0:00:05]} Qa5 {[%emt 0:00:08]} 9. Bd2 {[%emt 0:09:19]} Be7 {[%emt 0:00:21]} 10. Be2 {[%emt 0:02:17]} O-O {[%emt 0:00:07]} 11. O-O {[%emt 0:01:01]} Qe5 {[%emt 0:00:03]} 12. Bd3 {[%emt 0:16:52]} Nb4 {[%emt 0:00:40]} 13. Bb1 {[%emt 0:08:38]} Bd7 {[%emt 0:00:15]} 14. Be3 {[%emt 0:08:52]} Qa5 {[%emt 0:50:44]} 15. Qe2 {[%emt 0:20:37]} Rfc8 {[%emt 0:04:11]} 16. Rd1 {[%emt 0:07:07]} Be8 {[%emt 0:01:09]} 17. f4 {[%emt 0:19:44]} Qh5 {[%emt 0:08:10]} 18. Qxh5 {[%emt 0:02:28]} Nxh5 {[%emt 0:00:01]} 19. e5 {[%emt 0:00:57]} dxe5 {[%emt 0:01:23]} 20. fxe5 {[%emt 0:00:05]} Bc5 {[%emt 0:00:06]} 21. Kf2 {[%emt 0:00:47]} Nf4 {[%emt 0:03:48]} 22. Be4 {[%emt 0:00:09]} Rab8 {[%emt 0:01:34]} 23. Rd2 {[%emt 0:01:02]} b6 {[%emt 0:06:08]} 24. Re1 {[%emt 0:00:31]} Nc6 {[%emt 0:08:53]} 25. Bxc5 {[%emt 0:00:28]} bxc5 {[%emt 0:00:01]} 26. b3 {[%emt 0:00:25]} Kf8 {[%emt 0:05:15]} 27. g3 {[%emt 0:00:36]} Nh3+ {[%emt 0:01:27]} 28. Kf1 {[%emt 0:00:09]} Ng5 {[%emt 0:01:36]} 29. Bg2 {[%emt 0:00:08]} Nd4 {[%emt 0:00:20]} 30. Kf2 {[%emt 0:00:28]} Bc6 {[%emt 0:01:52]} 31. Re3 {[%emt 0:01:16]} f5 {[%emt 0:00:51]} 32. exf6 {[%emt 0:00:18]} gxf6 {[%emt 0:00:01]} 33. h4 {[%emt 0:00:27]} Nf7 {[%emt 0:00:13]} 34. Ne4 {[%emt 0:00:31]} Bxe4 {[%emt 0:00:47]} 35. Bxe4 {[%emt 0:00:44]} Ne5 {[%emt 0:01:52]} 36. Kg2 {[%emt 0:00:04]} Ng4 {[%emt 0:00:39]} 37. Re1 {[%emt 0:00:24]} f5 {[%emt 0:00:41]} 38. Bf3 {[%emt 0:00:50]} h5 {[%emt 0:00:34]} 39. Nc2 {[%emt 0:00:20]} Nxc2 {[%emt 0:00:34]} 40. Rxc2 {[%emt 0:00:05]} Kf7 {[%emt 0:00:18]} 41. Bxg4 {[%emt 0:15:30]} hxg4 {[%emt 0:00:05]} 42. Rd2 {[%emt 0:00:09]} Rd8 {[%emt 0:05:02]} 43. Red1 {[%emt 0:00:12]} Rxd2+ {[%emt 0:00:20]} 44. Rxd2 {[%emt 0:00:04]} Ke7 {[%emt 0:00:10]} 45. Kf2 {[%emt 0:06:46]} a5 {[%emt 0:03:05]} 46. Ke3 {[%emt 0:02:18]} a4 {[%emt 0:00:53]} 47. Rd3 {[%emt 0:03:37]} axb3 {[%emt 0:01:58]} 48. Rxb3 {[%emt 0:00:03]} Ra8 {[%emt 0:03:27]} 49. a3 {[%emt 0:02:44]} Kf6 {[%emt 0:00:11]} 50. Kf4 {[%emt 0:01:14]} Rd8 {[%emt 0:03:32]} 51. Ke3 {[%emt 0:00:47]} Rd1 {[%emt 0:04:12]} 52. a4 {[%emt 0:03:17]} Ra1 {[%emt 0:02:26]} 53. Rb5 {[%emt 0:00:06]} Rxa4 {[%emt 0:02:12]} 54. Rxc5 {[%emt 0:00:04]} Ra2 {[%emt 0:00:41]} 55. Rc8 {[%emt 0:01:19]} Rg2 {[%emt 0:00:11]} 56. c5 {[%emt 0:00:07]} Rxg3+ {[%emt 0:00:05]} 57. Kf2 {[%emt 0:00:21]} Rh3 {[%emt 0:06:56]} 58. c6 {[%emt 0:00:55]} Ke7 {[%emt 0:00:17]} 59. c7 {[%emt 0:00:35]} Kd7 {[%emt 0:00:05]} 60. Re8 {[%emt 0:00:17]} Kxc7 {[%emt 0:00:13]} 61. Rxe6 {[%emt 0:00:04]} Rxh4 {[%emt 0:00:09]} 62. Rf6 {[%emt 0:01:10]} Rh5 {[%emt 0:01:03]} 63. Kg2 {[%emt 0:00:34]} Kd7 {[%emt 0:00:12]} 64. Rg6 {[%emt 0:00:27]} Ke7 {[%emt 0:00:29]} 65. Ra6 {[%emt 0:00:12]} Rh3 {[%emt 0:00:22]} 66. Kf2 {[%emt 0:00:49]} Rd3 {[%emt 0:00:40]} 67. Rb6 {[%emt 0:00:34]} Rd6 {[%emt 0:00:10]} 68. Rb5 {[%emt 0:00:21]} Kf6 {[%emt 0:00:09]} 69. Rb8 {[%emt 0:00:09]} Ke5 {[%emt 0:00:21]} 70. Rb5+ {[%emt 0:00:32]} Ke4 {[%emt 0:00:46]} 71. Rb4+ {[%emt 0:00:05]} Rd4 {[%emt 0:00:09]} 72. Rb2 {[%emt 0:00:30]} f4 {[%emt 0:01:04]} 73. Re2+ {[%emt 0:00:08]} Kf5 {[%emt 0:00:10]} 74. Re8 {[%emt 0:00:27]} Rd2+ {[%emt 0:00:03]} 75. Kf1 {[%emt 0:00:09]} g3 {[%emt 0:00:35]} 76. Kg1 {[%emt 0:00:45]} Kg4 {[%emt 0:00:16]} 77. Ra8 {[%emt 0:00:10]} Rb2 {[%emt 0:00:40]} 78. Rc8 {[%emt 0:00:12]} Rb1+ {[%emt 0:00:08]} 79. Kg2 {[%emt 0:00:07]} f3# 0-1